bitfinex/quotes_SOLUSD_20220109
["timestamp","ask_amount","ask_price","bid_price","bid_amount"]
[1641746668730,4.00325203,141.25,141.14,10.22]
[1641746668931,10.628,141.24,141.15,0.25]
[1641746669331,8.26305032,141.26,141.15,0.25]
[1641746669531,8.01305032,141.26,141.15,10.47]
[1641746669732,8.01305032,141.26,141.15,12.00082586]
[1641746669931,8.01305032,141.26,141.16,0.25]
[1641746670131,26.95745203,141.27,141.16,10.8754]
[1641746670330,26.95745203,141.27,141.16,12.65622586]
[1641746670731,26.95745203,141.27,141.16,10.8754]
[1641746671030,26.95745203,141.27,141.16,10.6254]
[1641746671231,2.02,141.26,141.15,10.22]
[1641746671432,42.096999,141.25,141.12,74.7502]
[1641746671632,11.99,141.24,141.12,74.7502]
[1641746671832,6.766866,141.23,141.12,74.7502]
[1641746672033,36.0532,141.24,141.12,74.7502]
[1641746672233,29.44740323,141.22,141.12,74.7502]
[1641746672432,10.6309,141.2,141.12,74.7502]
[1641746672633,10.6309,141.2,141.13,0.25]
[1641746676436,18.375481,141.19,141.1,1.77]
[1641746676636,3.25,141.19,141.09,1.77]
[1641746676837,13.47,141.19,141.07,79.6007]
[1641746677139,3.0,141.18,141.07,79.6007]
[1641746677338,1.77,141.17,141.07,77.8307]
[1641746677537,36.30260756,141.16,141.07,77.8307]
[1641746677937,0.25,141.15,141.07,77.8307]
[1641746678337,0.25,141.15,141.08,0.25]
[1641746679038,10.6359,141.13,141.05,0.25]
[1641746679641,24.919,141.14,141.05,0.25]
[1641746680940,35.5542,141.14,141.05,2.02]
[1641746681139,35.5542,141.14,141.04,0.25]
[1641746681341,3.0,141.13,141.04,0.25]
[1641746681943,0.25,141.12,141.04,0.25]
[1641746682143,3.0,141.13,141.04,0.25]
[1641746682944,10.6369,141.12,141.04,0.25]
[1641746683146,15.620882,141.11,141.04,0.25]
[1641746683343,26.89494863,141.1,141.04,0.25]
[1641746683744,26.89494863,141.1,141.03,77.4848]
[1641746684959,10.6374,141.11,141.03,77.4848]
[1641746685147,10.6364,141.13,141.04,0.25]
[1641746685347,24.919,141.14,141.04,0.25]
[1641746685550,24.919,141.14,141.05,1.78082586]
[1641746685948,38.99869862,141.13,141.06,0.25]
[1641746686150,30.64690462,141.13,141.06,0.25]
[1641746686852,30.64690462,141.13,141.04,10.6348]
[1641746687057,30.64690462,141.13,141.05,1.77]
[1641746687654,30.64690462,141.13,141.03,98.35132586]
[1641746687858,30.64690462,141.13,141.04,1.772]
[1641746688254,30.64690462,141.13,141.05,0.25]
[1641746688854,41.28270462,141.13,141.05,0.25]
[1641746689858,41.28270462,141.13,141.04,1.772]
[1641746690058,0.25,141.12,141.03,85.9348]
[1641746690259,10.8867,141.12,141.03,85.9348]
[1641746690660,10.6367,141.12,141.03,85.9348]
[1641746690860,30.64690462,141.13,141.03,85.9348]
[1641746691062,30.64690462,141.13,141.04,1.772]
[1641746691261,30.64690462,141.13,141.03,77.4848]
[1641746691460,0.25,141.12,141.03,75.7148]
[1641746692487,0.25,141.12,141.04,0.25]
[1641746692685,3.25,141.12,141.04,0.25]
[1641746692885,13.8867,141.12,141.04,0.25]
[1641746695687,13.6367,141.12,141.04,0.25]
[1641746696392,0.25,141.11,141.04,0.25]
[1641746697497,13.6367,141.12,141.04,0.25]
[1641746697691,32.41890462,141.13,141.04,0.25]
[1641746697890,30.64690462,141.13,141.05,1.77]
[1641746698291,30.64690462,141.13,141.06,0.25]
[1641746700495,3.0,141.12,141.06,0.25]
[1641746701894,30.64690462,141.13,141.05,0.25]
[1641746702293,30.64690462,141.13,141.04,0.25]
[1641746702495,41.28280462,141.13,141.04,0.25]
[1641746703996,33.706041,141.12,141.04,0.25]
[1641746704194,10.6381,141.1,141.04,0.25]
[1641746705199,41.28340462,141.13,141.04,0.25]
[1641746705399,30.64690462,141.13,141.05,1.77]
[1641746705798,30.64690462,141.13,141.06,0.25]
[1641746707001,34.4509,141.15,141.06,0.25]
[1641746707402,23.816,141.15,141.06,0.25]
[1641746708203,54.82220566,141.15,141.06,0.25]
[1641746708705,65.45660566,141.15,141.06,0.25]
[1641746709306,19.834921,141.14,141.05,1.77]
[1641746709507,20.084921,141.14,141.06,0.25]
[1641746709705,0.25,141.14,141.06,0.25]
[1641746709910,34.688476,141.13,141.06,0.25]
[1641746710308,15.701673,141.12,141.06,0.25]
[1641746711535,23.816,141.15,141.06,0.25]
[1641746711737,4.00325203,141.16,141.07,1.77]
[1641746711936,4.00325203,141.16,141.08,0.25]
[1641746712135,4.00325203,141.16,141.09,1.77]
[1641746712335,4.00325203,141.16,141.08,0.25]
[1641746712539,22.69893272,141.15,141.08,10.6312]
[1641746712739,22.69893272,141.15,141.08,10.8812]
[1641746713541,22.69893272,141.15,141.08,0.25]
[1641746713946,22.69893272,141.15,141.07,0.25]
[1641746714238,0.25,141.14,141.07,0.25]
[1641746714438,0.25,141.14,141.06,0.25]
[1641746715540,10.6371,141.11,141.06,0.25]
[1641746716839,10.6371,141.11,141.03,75.51550669]
[1641746718451,10.6371,141.11,141.04,0.25]
[1641746719947,21.136839,141.1,141.02,1.77]
[1641746720246,23.32194053,141.09,141.01,10.22]
[1641746720446,0.25,141.08,140.99,48.5624]
[1641746720647,0.25,141.08,140.98,82.5745]
[1641746720846,0.25,141.08,140.98,84.3465]
[1641746721246,0.25,141.08,140.98,82.9265]
[1641746721449,0.25,141.08,140.99,0.25]
[1641746721946,10.6402,141.07,140.99,0.25]
[1641746722349,0.25,141.06,140.99,0.25]
[1641746722547,0.25,141.06,140.98,98.2366]
[1641746723847,0.25,141.06,140.99,0.25]
[1641746727655,0.25,141.07,140.99,0.25]
[1641746727957,0.25,141.08,140.99,0.25]
[1641746729761,10.8894,141.08,140.99,0.25]
[1641746732985,0.25,141.08,140.99,10.8884]
[1641746733186,35.8215,141.1,140.99,10.8884]
[1641746733487,23.4111,141.1,141.0,1.772]
[1641746733885,20.7981,141.12,141.01,0.25]
[1641746734285,29.76514335,141.11,141.01,0.25]
[1641746734484,40.40224335,141.11,141.01,10.8867]
[1641746734684,40.40224335,141.11,141.01,0.25]
[1641746735085,3.0,141.1,141.01,0.25]
[1641746735587,10.8893,141.09,141.01,0.25]
[1641746735985,10.8893,141.09,141.0,0.25]
[1641746736185,0.25,141.09,141.0,0.25]
[1641746736690,0.25,141.1,141.0,0.25]
[1641746736988,10.8878,141.1,141.0,10.8877]
[1641746738792,10.6378,141.1,141.0,10.8877]
[1641746738993,10.6378,141.1,141.01,1.772]
[1641746739196,52.11714335,141.11,141.01,1.772]
[1641746739394,52.11714335,141.11,141.01,12.409]
[1641746739994,52.11714335,141.11,141.01,34.9444]
[1641746741798,62.75434335,141.11,141.01,34.9444]
[1641746741997,62.75434335,141.11,141.01,24.3074]
[1641746742194,62.75434335,141.11,141.01,22.5354]
[1641746742794,33.409589,141.1,141.0,2.022]
[1641746742998,10.6406,141.07,141.0,0.25]
[1641746743194,25.9394,141.09,141.0,0.25]
[1641746743395,22.343457,141.08,141.0,0.25]
[1641746743594,22.343457,141.08,140.98,72.3545]
[1641746743595,40.00513763,141.08,140.98,72.3545]
[1641746743794,1.95614863,141.08,140.98,72.3545]
[1641746744904,31.2454555,141.05,140.98,72.3545]
[1641746746597,31.2454555,141.05,140.98,82.9939]
[1641746747303,1.95614863,141.08,140.98,82.9939]
[1641746747504,1.95614863,141.08,140.99,1.772]
[1641746747703,1.95614863,141.08,141.01,10.6366]
[1641746747904,1.95614863,141.1,141.02,1.772]
[1641746748303,22.65761892,141.09,141.02,1.772]
[1641746748703,22.65761892,141.09,141.01,1.772]
[1641746748904,22.65761892,141.09,141.0,2.022]
[1641746749105,22.65761892,141.09,141.0,0.25]
[1641746749504,24.61376755,141.09,141.0,0.25]
[1641746750104,22.65761892,141.09,141.0,0.25]
[1641746750908,22.65761892,141.09,141.0,10.8873]
[1641746752312,22.65761892,141.09,141.0,10.6373]
[1641746753810,22.65761892,141.09,141.01,12.4088]
[1641746754011,22.65761892,141.09,140.99,25.0979]
[1641746754211,22.65761892,141.09,140.99,27.1029558]
[1641746754919,33.29621892,141.09,140.99,35.7359]
[1641746755115,35.25236755,141.09,140.99,35.7359]
[1641746755413,35.25236755,141.09,141.0,0.25]
[1641746756656,35.25236755,141.09,140.99,1.772]
[1641746756853,25.769227,141.08,140.99,1.772]
[1641746757052,10.6421,141.05,140.99,1.772]
[1641746757254,11.487792,141.04,140.98,72.3545]
[1641746757455,23.92911986,141.03,140.98,72.3545]
[1641746758652,23.92911986,141.03,140.95,23.3242]
[1641746758851,34.57231986,141.03,140.95,23.3242]
[1641746759853,23.92911986,141.03,140.95,23.3242]
[1641746760057,1.95614863,141.06,140.95,37.03451468]
[1641746760255,1.95614863,141.06,140.95,45.38051468]
[1641746760655,1.95614863,141.07,140.96,1.772]
[1641746760855,1.95614863,141.07,140.96,24.5698]
[1641746761055,10.6416,141.05,140.96,24.5698]
[1641746761259,10.6416,141.05,140.96,22.7978]
[1641746761657,27.25047971,141.06,140.96,24.57862586]
[1641746762056,27.25047971,141.06,140.97,12.412]
[1641746762558,27.25047971,141.06,140.97,1.772]
[1641746762956,27.25047971,141.06,140.97,3.55282586]
[1641746763157,27.25047971,141.06,140.97,14.19282586]
[1641746763557,1.95614863,141.08,140.97,14.19282586]
[1641746763768,1.95614863,141.08,140.98,79.478]
[1641746763967,61.95725203,141.11,140.99,1.772]
[1641746763968,1.95614863,141.09,140.99,1.772]
[1641746764368,1.95614863,141.09,141.0,0.25]
[1641746764575,28.64833397,141.08,141.0,0.25]
[1641746764769,1.95614863,141.09,141.0,2.03082586]
[1641746764970,1.95614863,141.09,141.0,12.66872586]
[1641746765370,1.95614863,141.1,141.0,12.66872586]
[1641746765974,28.6328224,141.09,141.0,12.66872586]
[1641746766578,39.2714224,141.09,141.0,12.66872586]
[1641746766878,39.2714224,141.09,141.0,2.03082586]
[1641746767077,39.2714224,141.09,141.0,0.25]
[1641746767899,41.22757103,141.09,141.0,0.25]
[1641746768102,24.553976,141.08,140.98,90.1168]
[1641746768299,33.4012,141.08,140.98,90.1168]
[1641746770204,33.4012,141.08,140.98,79.478]
[1641746772211,22.7615,141.08,140.98,81.25882586]
[1641746772610,22.7615,141.08,140.99,1.772]
[1641746773011,30.58897103,141.09,141.0,0.25]
[1641746773211,28.6328224,141.09,141.0,0.25]
[1641746773710,39.2715224,141.09,141.0,0.25]
[1641746774612,41.22767103,141.09,141.0,0.25]
[1641746776015,12.59484863,141.09,141.0,0.25]
[1641746776215,1.95614863,141.09,141.01,1.78082586]
[1641746776415,1.95614863,141.1,141.02,1.772]
[1641746777216,26.27165969,141.11,141.02,1.772]
[1641746777416,1.95614863,141.12,141.02,38.99842586]
[1641746777816,1.95614863,141.12,141.02,49.21842586]
[1641746778220,1.95614863,141.13,141.02,49.21842586]
[1641746778416,27.25691114,141.13,141.03,102.7385]
[1641746778641,27.25691114,141.13,141.04,1.772]
[1641746778842,27.25691114,141.13,141.03,104.5085]
[1641746779041,25.30076251,141.13,141.03,104.5085]
[1641746779842,27.25691114,141.13,141.03,104.5085]
[1641746780643,25.30076251,141.13,141.03,104.5085]
[1641746780846,25.30076251,141.13,141.06,10.6332]
[1641746782744,25.30076251,141.13,141.04,10.6343]
[1641746783545,27.25691114,141.13,141.04,10.6343]
[1641746783946,1.95614863,141.13,141.04,10.6343]
[1641746784146,1.95614863,141.13,141.04,12.41512586]
[1641746784346,1.95614863,141.13,141.04,22.63512586]
[1641746784546,1.95614863,141.13,141.05,3.0]
[1641746784746,1.95614863,141.13,141.09,10.63]
[1641746784946,1.95614863,141.13,141.09,18.76]
[1641746785145,1.95614863,141.15,141.09,18.76]
[1641746785546,1.95614863,141.15,141.1,0.25]
[1641746785746,4.863e-05,141.15,141.13,73.0]
[1641746785949,4.863e-05,141.17,141.14,5.53009997]
[1641746786948,4.863e-05,141.17,141.14,16.15619997]
[1641746787148,30.40053038,141.23,141.14,16.15619997]
[1641746788349,30.40053038,141.23,141.14,17.92619997]
[1641746788951,24.297,141.25,141.14,23.36419997]
[1641746789152,24.297,141.25,141.14,100.80409997]
[1641746789751,24.297,141.25,141.15,3.0]
[1641746789953,24.67966934,141.24,141.16,10.6256]
[1641746790254,24.67966934,141.24,141.14,79.2099]
[1641746790255,11.478836,141.23,141.14,79.2099]
[1641746790453,13.248836,141.23,141.14,1.77]
[1641746790655,1.77,141.23,141.14,1.77]
[1641746791461,15.875864,141.22,141.14,1.77]
[1641746791657,15.875864,141.22,141.1,21.0997]
[1641746791856,26.3335,141.23,141.1,21.0997]
[1641746792456,26.3335,141.23,141.1,45.4667]
[1641746792856,10.6293,141.21,141.1,45.4667]
[1641746793058,24.5635,141.23,141.13,10.6278]
[1641746794157,3.0,141.22,141.13,10.6278]
[1641746794357,24.5635,141.23,141.13,10.6278]
[1641746794558,3.0,141.22,141.13,10.6278]
[1641746794757,3.0,141.22,141.11,1.77]
[1641746794758,24.67966934,141.24,141.14,1.77]
[1641746794958,24.67966934,141.24,141.16,10.6257]
[1641746795757,58.6831,141.26,141.16,10.6257]
[1641746795958,35.1149,141.26,141.16,10.6257]
[1641746796157,35.1149,141.26,141.16,18.9327]
[1641746796759,25.60151226,141.25,141.16,18.9327]
[1641746797059,25.60151226,141.25,141.16,8.307]
[1641746797259,25.60151226,141.25,141.14,90.5961]
[1641746797461,27.37151226,141.25,141.14,88.8261]
[1641746797659,27.37151226,141.25,141.14,78.1994]
[1641746797860,3.0,141.24,141.14,78.1994]
[1641746798059,10.6279,141.23,141.14,78.1994]
[1641746798863,0.25,141.22,141.15,0.25]
[1641746799262,10.8787,141.22,141.13,1.77]
[1641746799462,10.8787,141.22,141.12,10.22]
[1641746799662,10.8787,141.22,141.13,0.25]
[1641746800764,15.6692,141.21,141.13,0.25]
[1641746800964,0.25,141.2,141.1,3.25]
[1641746801165,27.23497845,141.19,141.1,0.25]
[1641746801367,0.25,141.18,141.1,0.25]
[1641746801566,0.25,141.18,141.1,10.8803]
[1641746801965,0.25,141.18,141.1,0.25]
[1641746802165,10.8816,141.18,141.1,0.25]
[1641746803067,15.838572,141.17,141.1,0.25]
[1641746803369,10.8834,141.16,141.07,1.77]
[1641746804768,10.8834,141.16,141.08,0.25]
[1641746805000,10.8834,141.16,141.07,1.77]
[1641746806408,10.8834,141.16,141.08,0.25]
[1641746807005,10.8834,141.16,141.07,1.77]
[1641746807203,10.8834,141.16,141.04,12.4043]
[1641746808203,10.6334,141.16,141.04,12.4043]
[1641746808404,10.6334,141.16,141.07,10.6326]
[1641746808604,10.6334,141.16,141.08,1.77]
[1641746808805,3.0,141.15,141.08,2.02]
[1641746809005,3.0,141.15,141.07,10.6326]
[1641746809206,3.0,141.15,141.08,0.25]
[1641746809607,10.6334,141.16,141.08,0.25]
[1641746810410,10.6334,141.16,141.07,0.25]
[1641746810809,0.25,141.15,141.07,0.25]
[1641746811010,10.8838,141.15,141.07,0.25]
[1641746812511,0.25,141.15,141.07,0.25]
[1641746812711,10.6331,141.17,141.07,10.8826]
[1641746812911,22.6662,141.18,141.07,18.6186]
[1641746813213,22.6662,141.18,141.08,1.77]
[1641746813414,22.6662,141.18,141.09,0.25]
[1641746813812,22.6662,141.18,141.09,10.8811]
[1641746814616,0.25,141.17,141.09,10.6311]
[1641746814813,10.8824,141.17,141.08,77.1613]
[1641746815015,10.8824,141.17,141.09,0.25]
[1641746816155,10.8824,141.17,141.08,0.25]
[1641746816315,10.8824,141.17,141.06,99.7538]
[1641746816516,1.77,141.16,141.07,0.25]
[1641746816917,0.25,141.15,141.07,0.25]
[1641746817517,0.25,141.15,141.06,75.4826]
[1641746817817,25.93247727,141.13,141.06,75.4826]
[1641746818219,0.25,141.12,141.06,75.4826]
[1641746819417,0.25,141.12,141.07,0.25]
[1641746820620,25.93247727,141.13,141.07,0.25]
[1641746822021,25.93247727,141.13,141.06,75.4826]
[1641746822224,25.93247727,141.13,141.07,0.25]
[1641746822823,10.633,141.17,141.07,0.25]
[1641746823024,4.00325203,141.18,141.08,1.77]
[1641746823652,4.00325203,141.18,141.09,0.25]
[1641746823851,27.632276,141.18,141.1,1.77]
[1641746824053,23.62902397,141.18,141.1,1.77]
[1641746824251,23.62902397,141.18,141.11,0.25]
[1641746824451,23.62902397,141.18,141.12,1.77]
[1641746824853,23.62902397,141.18,141.13,0.25]
[1641746825052,35.1574,141.2,141.13,0.25]
[1641746825250,204.20566315,141.21,141.13,8.808]
[1641746825851,204.20566315,141.21,141.13,19.4359]
[1641746826553,23.3127,141.21,141.13,19.4359]
[1641746827459,51.84352437,141.23,141.13,19.4359]
[1641746828457,51.84352437,141.23,141.14,1.77]
[1641746828659,51.84352437,141.23,141.15,10.6265]
[1641746828858,23.0237,141.23,141.15,10.8765]
[1641746829058,4.00325203,141.24,141.15,10.8765]
[1641746829264,4.00325203,141.24,141.16,1.77]
[1641746829458,4.00325203,141.24,141.17,0.25]
[1641746829659,27.34405203,141.27,141.17,0.25]
[1641746829859,27.34405203,141.27,141.2,10.6224]
[1641746830659,23.3408,141.27,141.2,10.6224]
[1641746831261,4.008836,141.26,141.2,10.6224]
[1641746831465,23.3408,141.27,141.2,10.6224]
[1641746831661,23.3408,141.27,141.2,16.6354]
[1641746831861,23.3408,141.27,141.2,6.013]
[1641746832863,23.3408,141.27,141.19,1.77]
[1641746833063,4.00325203,141.28,141.2,8.183]
[1641746833264,203.45146315,141.29,141.2,8.433]
[1641746834366,22.5585,141.29,141.2,8.433]
[1641746834764,22.5585,141.29,141.24,10.6198]
[1641746835065,24.9518,141.31,141.24,10.6198]
[1641746835267,24.9518,141.31,141.23,7.874]
[1641746835466,4.00325203,141.32,141.24,0.25]
[1641746835666,4.00325203,141.33,141.24,5.29082586]
[1641746835865,4.00325203,141.33,141.24,15.51082586]
[1641746836566,31.41434103,141.34,141.24,15.51082586]
[1641746836767,31.41434103,141.34,141.24,26.13052586]
[1641746836966,0.25,141.33,141.24,102.18062586]
[1641746837169,12.3863,141.36,141.24,102.18062586]
[1641746837367,125.6663488,141.38,141.25,3.54882586]
[1641746837567,125.6663488,141.38,141.26,13.22]
[1641746837773,125.6663488,141.38,141.27,1.838]
[1641746837969,125.6663488,141.38,141.32,10.6128]
[1641746838371,23.80392741,141.42,141.33,2.278]
[1641746838569,23.80392741,141.42,141.33,7.05882586]
[1641746838770,23.80392741,141.42,141.33,14.02582586]
[1641746838970,23.80392741,141.42,141.33,11.02582586]
[1641746839171,23.80392741,141.42,141.34,3.0]
[1641746839370,23.80392741,141.42,141.35,0.25]
[1641746839570,23.80392741,141.42,141.35,10.8615]
[1641746839771,10.6117,141.45,141.35,10.8615]
[1641746839969,122.0622,141.47,141.36,0.26]
[1641746840171,47.7603,141.47,141.36,5.843]
[1641746840373,47.7603,141.47,141.37,0.25]
[1641746840773,28.46825857,141.46,141.37,0.25]
[1641746840974,42.07875857,141.46,141.37,10.8599]
[1641746841173,42.07875857,141.46,141.35,1.768]
[1641746841373,1.766,141.45,141.36,0.25]
[1641746841574,0.25,141.45,141.36,5.785]
[1641746841776,42.07875857,141.46,141.36,5.785]
[1641746842174,42.07875857,141.46,141.36,16.3954]
[1641746842977,10.8613,141.45,141.36,16.3954]
[1641746843176,39.731895,141.44,141.36,5.535]
[1641746843476,2.018,141.43,141.32,10.22]
[1641746844076,12.6313,141.43,141.32,10.22]
[1641746844475,10.8633,141.43,141.33,0.51]
[1641746844676,10.8633,141.43,141.33,11.1229]
[1641746846279,10.8633,141.43,141.33,10.8629]
[1641746846479,10.8633,141.43,141.32,1.768]
[1641746846682,33.234655,141.42,141.3,10.22]
[1641746846879,33.234655,141.42,141.29,50.11542586]
[1641746846880,0.25,141.41,141.29,48.3346]
[1641746847081,1.768,141.4,141.3,0.25]
[1641746847283,10.22,141.43,141.31,1.768]
[1641746847284,31.86315957,141.39,141.31,1.768]
[1641746847480,31.86315957,141.39,141.32,0.25]
[1641746847683,46.5647,141.42,141.32,0.25]
[1641746847880,1.768,141.43,141.33,1.78082586]
[1641746848083,10.22,141.45,141.34,1.768]
[1641746848379,10.22,141.45,141.34,2.018]
[1641746848580,32.01547949,141.44,141.34,12.6299]
[1641746849179,42.62797949,141.44,141.34,12.6299]
[1641746849580,32.01547949,141.44,141.34,12.6299]
[1641746850981,32.01547949,141.44,141.36,10.6105]
[1641746851381,32.01547949,141.44,141.37,0.25]
[1641746852880,10.611,141.46,141.37,0.25]
[1641746853281,10.611,141.46,141.37,10.8601]
[1641746853485,47.7146,141.48,141.38,1.766]
[1641746853884,25.696257,141.47,141.39,0.25]
[1641746854182,28.696257,141.47,141.4,1.766]
[1641746854383,28.696257,141.47,141.39,0.25]
[1641746854384,28.696257,141.47,141.38,1.766]
[1641746854583,28.696257,141.47,141.38,2.016]
[1641746854984,0.25,141.46,141.38,1.766]
[1641746855282,28.696257,141.47,141.37,10.6094]
[1641746855483,28.696257,141.47,141.38,3.54682586]
[1641746855683,0.25,141.46,141.38,14.15612586]
[1641746855883,0.25,141.46,141.39,0.25]
[1641746856787,3.0,141.47,141.39,12.63932586]
[1641746856988,135.80327075,141.49,141.39,26.11932586]
[1641746857188,135.80327075,141.49,141.39,23.11932586]
[1641746857414,135.80327075,141.49,141.4,3.0]
[1641746857614,135.80327075,141.49,141.4,13.22]
[1641746857813,135.80327075,141.49,141.41,2.29082586]
[1641746858217,135.80327075,141.49,141.42,1.78082586]
[1641746858418,24.39738357,141.51,141.43,0.25]
[1641746859019,24.39738357,141.51,141.43,2.29082586]
[1641746859421,24.39738357,141.51,141.43,3.79682586]
[1641746859622,24.39738357,141.51,141.43,0.25]
[1641746860022,24.39738357,141.51,141.41,0.51]
[1641746860225,0.25,141.5,141.43,10.6048]
[1641746860423,24.39738357,141.51,141.44,0.51]
[1641746860625,24.39738357,141.51,141.45,1.766]
[1641746861826,24.39738357,141.51,141.44,10.8548]
[1641746862024,24.39738357,141.51,141.44,0.25]
[1641746862224,0.25,141.5,141.42,10.22]
[1641746862625,2.016,141.5,141.42,10.22]
[1641746862826,11.498159,141.49,141.42,10.22]
[1641746863026,1.766,141.48,141.42,10.22]
[1641746863226,2.016,141.48,141.38,92.06322586]
[1641746864028,2.016,141.48,141.38,90.2824]
[1641746864029,1.766,141.48,141.38,90.2824]
[1641746864430,1.766,141.49,141.38,92.0484]
[1641746864632,10.6094,141.48,141.38,10.6086]
[1641746864830,69.827528,141.47,141.34,1.766]
[1641746865030,28.00475199,141.45,141.31,1.766]
[1641746865230,1.768,141.44,141.31,1.766]
[1641746865430,2.018,141.44,141.31,1.766]
[1641746865830,2.018,141.44,141.31,76.8523]
[1641746866230,2.018,141.44,141.32,0.25]
[1641746866434,2.018,141.44,141.32,0.51]
[1641746866733,3.0,141.43,141.32,10.8632]
[1641746866930,12.6302,141.44,141.32,10.8632]
[1641746866931,10.6122,141.44,141.32,10.8632]
[1641746867131,10.6122,141.44,141.32,18.13902586]
[1641746867431,38.22475199,141.45,141.33,3.0]
[1641746867831,38.22475199,141.45,141.34,0.25]
[1641746868031,38.22475199,141.45,141.35,1.768]
[1641746868232,38.22475199,141.45,141.35,7.553]
[1641746868433,38.22475199,141.45,141.36,0.25]
[1641746868661,38.22475199,141.45,141.37,1.766]
[1641746868834,0.25,141.44,141.37,10.6099]
[1641746869038,2.016,141.44,141.33,63.0323]
[1641746869234,2.016,141.44,141.33,60.0323]
[1641746869437,2.016,141.44,141.34,0.25]
[1641746869637,0.25,141.44,141.34,2.018]
[1641746870136,10.8617,141.44,141.34,2.018]
[1641746870739,10.8617,141.44,141.34,0.25]
[1641746871238,20.528755,141.43,141.34,0.25]
[1641746871437,20.528755,141.43,141.32,1.768]
[1641746871438,10.8637,141.42,141.33,10.8624]
[1641746871640,10.8637,141.42,141.33,0.25]
[1641746872036,10.8637,141.42,141.32,0.25]
[1641746872937,10.6137,141.42,141.32,0.25]
[1641746873538,10.6137,141.42,141.32,0.51]
[1641746874038,10.6137,141.42,141.32,11.1236]
[1641746874541,0.25,141.41,141.32,10.8636]
[1641746875444,10.6125,141.43,141.33,0.26]
[1641746875644,42.22800402,141.45,141.35,10.6113]
[1641746875845,0.25,141.42,141.35,10.6113]
[1641746876047,0.25,141.42,141.36,0.25]
[1641746876874,10.8619,141.44,141.36,0.25]
[1641746877074,10.8619,141.44,141.35,0.25]
[1641746878171,14.86515203,141.44,141.35,0.25]
[1641746878771,14.86515203,141.44,141.35,10.8616]
[1641746878972,10.8619,141.44,141.35,0.25]
[1641746879573,12.6299,141.44,141.35,0.25]
[1641746879874,16.63315203,141.44,141.32,5.278]
[1641746880074,14.86515203,141.44,141.34,10.6122]
[1641746880276,14.86515203,141.44,141.35,1.768]
[1641746880474,14.86515203,141.44,141.35,2.018]
[1641746880674,14.86515203,141.44,141.35,0.25]
[1641746881074,10.8619,141.44,141.35,0.25]
[1641746881675,14.86515203,141.44,141.35,0.25]
[1641746882374,10.8619,141.44,141.35,0.25]
[1641746883075,14.86515203,141.44,141.35,0.25]
[1641746884274,14.77440793,141.44,141.35,0.25]
[1641746884775,4.00325203,141.44,141.35,10.8614]
[1641746884975,4.00325203,141.44,141.36,0.26]
[1641746885176,4.00325203,141.44,141.37,1.768]
[1641746885375,4.00325203,141.44,141.38,0.51]
[1641746885576,28.00475199,141.45,141.38,0.51]
[1641746885577,28.00475199,141.45,141.39,1.766]
[1641746885777,27.80455203,141.48,141.39,12.3743]
[1641746885976,27.80455203,141.48,141.4,0.51]
[1641746886176,4.00325203,141.48,141.41,1.766]
[1641746886477,4.00325203,141.5,141.42,0.51]
[1641746886676,4.00325203,141.5,141.42,3.51]
[1641746886875,4.00325203,141.5,141.42,5.29082586]
[1641746887277,202.1372058,141.51,141.44,10.6046]